bitfinex/quotes_ETHUSD_20241123
["timestamp","ask_amount","ask_price","bid_price","bid_amount"]
[1732395914054,0.03673329,3403.2,3402.8,0.7581]
[1732395914255,0.0367333,3403.4,3402.8,0.78737014]
[1732395914561,0.370496,3403.4,3402.8,0.78737014]
[1732395914874,2.93849,3403.1,3402.8,0.78737014]
[1732395915787,0.03673467,3403.0,3402.8,0.02927014]
[1732395915974,2.93866,3402.9,3402.8,0.02927014]
[1732395916421,2.9754003,3402.9,3402.8,0.02927014]
[1732395916599,3.93733033,3402.9,3402.8,0.02927014]
[1732395917381,7.70413033,3402.9,3402.8,0.02927014]
[1732395917572,2.93962,3401.8,3401.4,0.7581]
[1732395917877,0.03674483,3402.0,3401.4,0.7581]
[1732395918420,2.93963,3401.8,3401.4,0.7581]
[1732395918716,0.8035444,3402.2,3401.4,0.7581]
[1732395918717,2.93937,3402.1,3401.4,0.7581]
[1732395919200,2.93955,3401.9,3401.4,0.78737014]
[1732395919512,2.93907,3402.5,3401.6,0.7581]
[1732395919712,2.93884,3402.7,3401.6,0.7581]
[1732395919713,2.93911,3402.4,3401.8,2.05773]
[1732395920032,2.93897,3402.6,3402.0,0.7581]
[1732395920175,2.93875,3402.8,3402.1,2.60754]
[1732395920374,2.93894,3402.6,3402.1,0.57927014]
[1732395921208,2.9392,3402.3,3402.1,0.02927014]
[1732395921444,2.93885,3402.7,3402.1,0.02927014]
[1732395921608,2.93869,3402.9,3402.1,0.02927014]
[1732395921807,2.93875,3402.8,3402.1,0.02927014]
[1732395922058,2.9389,3402.7,3402.1,0.02927014]
[1732395922374,3.31294291,3402.9,3402.1,2.08681014]
[1732395922514,2.93884,3402.7,3402.1,2.08681014]
[1732395924594,2.93893,3402.6,3402.1,0.02927014]
[1732395925237,2.93845,3403.2,3402.5,2.0573]
[1732395925485,2.93823,3403.4,3402.6,0.7581]
[1732395925613,2.93849,3403.1,3402.6,0.78737014]
[1732395925810,2.97506378,3403.3,3402.6,0.78737014]
[1732395926117,2.93842,3403.2,3402.6,2.84460014]
[1732395926426,2.93833,3403.3,3402.6,2.84460014]
[1732395926624,2.93812,3403.6,3402.9,2.05706]
[1732395926808,2.93808,3403.6,3403.0,2.81509]
[1732395927011,0.7668,3403.9,3403.0,0.7581]
[1732395927216,2.93805,3403.7,3403.0,0.7581]
[1732395927519,2.93805,3403.7,3403.0,2.81509]
[1732395927748,2.93808,3403.6,3403.0,2.81509]
[1732395928148,2.97494939,3403.5,3403.0,0.7581]
[1732395928399,0.03672939,3403.5,3403.0,0.7581]
[1732395928843,0.7668,3403.9,3403.1,2.05694]
[1732395929153,2.93774,3404.0,3403.3,2.05681]
[1732395929360,2.93786,3403.9,3403.3,2.08608014]
[1732395929556,0.7668,3404.2,3403.3,0.02927014]
[1732395929757,2.93803,3403.7,3403.3,0.02927014]
[1732395930086,0.03672821,3403.6,3403.3,0.02927014]
[1732395930468,2.93785,3403.9,3403.3,0.02927014]
[1732395930618,0.7668,3404.2,3403.3,0.02927014]
[1732395930959,2.93793,3403.8,3403.3,0.02927014]
[1732395931336,0.03672822,3403.7,3403.3,0.02927014]
[1732395931539,2.93815,3403.5,3403.3,0.02927014]
[1732395931744,0.03672825,3403.6,3403.3,0.02927014]
[1732395932056,0.07845832,3403.5,3403.3,0.02927014]
[1732395932257,2.93783,3403.9,3403.3,0.02927014]
[1732395932568,2.93798,3403.7,3403.3,0.02927014]
[1732395932719,0.03672824,3403.8,3403.3,0.02927014]
[1732395932720,2.93815,3403.5,3403.3,0.02927014]
[1732395932941,0.11276351,3403.6,3403.3,0.02927014]
[1732395933116,0.07344356,3403.4,3403.3,0.02927014]
[1732395933366,2.93791,3403.8,3403.3,0.02927014]
[1732395933576,0.07101566,3403.4,3403.3,0.02927014]
[1732395933767,2.9378,3403.9,3403.3,0.57927014]
[1732395933924,0.06867373,3403.4,3403.3,2.63609014]
[1732395934122,2.9378,3403.9,3403.3,2.63609014]
[1732395934457,2.9377,3404.1,3403.3,2.63609014]
[1732395934662,2.93812,3403.6,3403.3,0.02927014]
[1732395934828,0.06871639,3403.5,3403.3,0.02927014]
[1732395935342,2.93797,3403.8,3403.3,0.02927014]
[1732395935547,0.06868215,3403.4,3403.3,0.02927014]
[1732395935979,2.93773,3404.0,3403.4,0.7774]
[1732395936070,2.93786,3403.9,3403.4,0.7774]
[1732395936252,2.93789,3403.8,3403.4,0.7774]
[1732395936452,0.06653953,3403.7,3403.4,0.7774]
[1732395936865,2.93777,3404.0,3403.4,0.7774]
[1732395937176,0.06231952,3403.9,3403.4,0.7774]
[1732395937387,0.06231952,3403.9,3403.4,2.83412]
[1732395937741,0.03805111,3403.9,3403.4,2.83412]
[1732395937942,2.93776,3404.0,3403.4,2.83412]
[1732395938274,0.02622583,3403.9,3403.4,0.7774]
[1732395938842,2.96403583,3403.9,3403.4,0.7774]
[1732395939389,3.00655872,3403.8,3403.4,0.7774]
[1732395939675,2.94711456,3403.8,3403.4,0.7774]
[1732395939881,2.9379,3403.8,3403.4,0.7774]
[1732395940185,0.05266076,3403.7,3403.4,0.7774]
[1732395940544,2.93778,3404.0,3403.4,0.7774]
[1732395940753,0.05261811,3403.6,3403.4,0.7774]
[1732395941086,0.05257545,3403.5,3403.4,0.7774]
[1732395941387,2.93781,3403.9,3403.4,0.7774]
[1732395941388,2.97453493,3403.9,3403.4,1.3274]
[1732395941681,0.05257545,3403.5,3403.4,1.3274]
[1732395941841,2.9379,3403.8,3403.4,1.3274]
[1732395942037,2.98891216,3403.7,3403.4,1.3274]
[1732395943144,2.93807,3403.6,3403.4,1.3274]
[1732395943455,0.04466756,3403.5,3403.4,1.3274]
[1732395943648,2.97468488,3403.8,3403.4,1.3274]
[1732395943885,0.04328647,3403.7,3403.4,1.3274]
[1732395944068,2.97468488,3403.8,3403.4,1.3274]
[1732395944268,0.04040954,3403.7,3403.4,1.3274]
[1732395944786,2.93782,3403.9,3403.4,1.3274]
[1732395944966,0.03767792,3403.6,3403.4,1.3274]
[1732395945157,2.93782,3403.9,3403.4,1.3274]
[1732395945394,0.03763526,3403.5,3403.4,1.3274]
[1732395945678,0.03763526,3403.5,3403.4,3.38416]
[1732395945877,2.9373,3404.5,3403.6,2.0566]
[1732395946090,2.9373,3404.5,3403.5,0.55]
[1732395946091,2.93746,3404.3,3403.7,2.05657]
[1732395946432,0.03554643,3404.2,3403.8,2.05648]
[1732395946556,0.03554643,3404.2,3403.8,2.08575014]
[1732395946757,0.8309,3404.9,3403.8,2.08575014]
[1732395946758,0.03671868,3404.4,3403.9,0.55]
[1732395946982,0.03434999,3404.1,3403.8,0.57927014]
[1732395947236,2.93743,3404.4,3403.8,0.57927014]
[1732395947237,2.9741487,3404.4,3403.8,0.57927014]
[1732395947518,0.0367187,3404.4,3403.8,0.57927014]
[1732395947817,2.97194789,3404.3,3403.8,0.57927014]
[1732395948598,2.9742587,3404.2,3403.8,0.02927014]
[1732395948776,2.93779,3404.0,3403.8,0.02927014]
[1732395948980,0.03436261,3404.1,3403.8,0.02927014]
[1732395949225,0.03427396,3403.9,3403.8,0.02927014]
[1732395949402,2.93764,3404.1,3403.8,0.02927014]
[1732395949639,0.03427396,3403.9,3403.8,0.02927014]
[1732395949787,2.93764,3404.1,3403.8,0.02927014]
[1732395949986,0.03427396,3403.9,3403.8,0.02927014]
[1732395950225,2.93764,3404.1,3403.8,0.02927014]
[1732395950429,0.03291491,3403.9,3403.8,0.02927014]
[1732395950589,2.93722,3404.6,3403.8,2.63579014]
[1732395950785,0.03079771,3403.9,3403.8,2.63579014]
[1732395950980,2.93735,3404.5,3403.8,2.63579014]
[1732395951334,0.8309,3404.9,3403.8,2.63579014]
[1732395951335,2.93704,3404.8,3403.8,2.63579014]
[1732395951480,0.03101091,3404.4,3404.0,0.55]
[1732395951732,0.03101091,3404.4,3404.0,0.57927014]
[1732395952112,0.03101091,3404.4,3404.1,0.7718]
[1732395952318,0.03101091,3404.4,3404.1,0.80107014]
[1732395952624,2.96839091,3404.4,3404.1,0.80107014]
[1732395952796,2.93746,3404.3,3404.1,0.80107014]
[1732395953119,0.03094666,3404.2,3404.1,0.80107014]
[1732395953482,2.93746,3404.3,3404.1,0.80107014]
[1732395953837,2.93746,3404.3,3404.1,0.02927014]
[1732395953838,0.03094666,3404.2,3404.1,0.02927014]
[1732395954016,2.96848666,3404.2,3404.1,0.02927014]
[1732395954838,0.03094666,3404.2,3404.1,0.02927014]
[1732395955036,2.93754,3404.2,3404.1,0.02927014]
[1732395955538,2.96848666,3404.2,3404.1,0.02927014]
[1732395959438,0.03094666,3404.2,3404.1,0.02927014]
[1732395959935,0.03097359,3404.2,3404.1,0.02927014]
[1732395960151,2.93738,3404.4,3404.1,0.02927014]
[1732395960450,0.03097359,3404.2,3404.1,0.02927014]
[1732395960804,2.93738,3404.4,3404.1,0.02927014]
[1732395961194,0.03101623,3404.3,3404.1,0.02927014]
[1732395961513,2.93722,3404.6,3404.1,0.02927014]
[1732395961737,0.03110823,3404.5,3404.3,0.55]
[1732395961941,0.03110823,3404.5,3404.4,2.60616]
[1732395962255,2.93672,3405.2,3404.6,2.05603]
[1732395962459,2.93672,3405.2,3404.7,0.55]
[1732395962664,2.93672,3405.2,3404.7,0.57927014]
[1732395962963,2.93679,3405.1,3404.7,0.02927014]
[1732395963169,0.7515,3405.5,3404.7,0.02927014]
[1732395963328,2.93703,3404.8,3404.7,0.02927014]
[1732395965051,2.93665,3405.3,3404.8,0.7579]
[1732395965379,2.93653,3405.4,3404.8,0.78717014]
[1732395965528,2.93634,3405.6,3405.1,0.55]
[1732395965720,2.93616,3405.8,3405.1,0.55]
[1732395965721,2.93616,3405.8,3405.1,0.57927014]
[1732395965925,2.93616,3405.8,3405.2,0.7579]
[1732395966148,2.93658,3405.4,3405.2,0.78717014]
[1732395966426,2.93636,3405.6,3405.2,0.78717014]
[1732395967225,2.93644,3405.5,3405.2,0.78717014]
[1732395967461,2.93659,3405.3,3405.2,1.33717014]
[1732395967963,2.93659,3405.3,3405.2,0.02927014]
[1732395968505,2.88659,3405.3,3405.2,0.02927014]
[1732395970389,3.84629388,3405.3,3405.2,0.02927014]
[1732395970847,7.64709388,3405.3,3405.2,0.02927014]
[1732395972076,7.64709388,3405.3,3405.2,1.4e-07]
[1732395972383,7.64709388,3405.3,3403.5,2.82382038]
[1732395972384,2.93806,3403.6,3403.5,0.8141]
[1732395972781,2.93792,3403.8,3403.5,0.8141]
[1732395972941,2.93772,3404.0,3403.5,0.8141]
[1732395973138,2.93763,3404.1,3403.5,0.8141]
[1732395973364,2.93806,3403.6,3403.5,0.8141]
[1732395973695,2.9378,3403.9,3403.5,0.8141]
[1732395973838,2.93786,3403.9,3403.5,0.8141]
[1732395974551,2.93786,3403.9,3403.5,0.84337014]
[1732395974874,2.97415398,3404.4,3403.5,0.84337014]
[1732395975085,2.93794,3403.8,3403.5,0.84337014]
[1732395975256,0.0298132,3403.7,3403.5,0.84337014]
[1732395975437,2.93798,3403.7,3403.5,0.84337014]
[1732395975744,2.96783055,3403.6,3403.5,1.39337014]
[1732395976154,2.96783055,3403.6,3403.5,0.84337014]
[1732395976353,0.02977055,3403.6,3403.5,0.02927014]
[1732395976542,2.96783055,3403.6,3403.5,0.02927014]
[1732395980143,0.02977055,3403.6,3403.5,0.83577014]
[1732395980351,0.02977055,3403.6,3403.5,1.38577014]
[1732395980648,2.93746,3404.3,3403.5,1.38577014]
[1732395980649,2.93729,3404.5,3403.9,0.8065]
[1732395980852,0.02920503,3404.4,3404.0,0.55]
[1732395981042,2.93729,3404.5,3404.0,0.55]
[1732395981245,0.02920503,3404.4,3404.0,0.55]
[1732395981441,2.93729,3404.5,3404.0,0.55]
[1732395981682,0.02924288,3404.4,3404.0,0.55]
[1732395981844,0.03671803,3404.5,3404.0,0.55]
[1732395982051,0.02924288,3404.4,3404.0,0.55]
[1732395982249,2.96661288,3404.4,3404.0,0.55]
[1732395982556,2.93747,3404.3,3404.0,0.55]
[1732395982975,0.02915761,3404.2,3404.0,0.55]
[1732395983183,2.96670761,3404.2,3404.0,0.55]
[1732395983357,2.93755,3404.2,3403.9,0.02927014]
[1732395983672,0.02911497,3404.1,3403.9,0.02927014]
[1732395983868,2.93734,3404.5,3403.9,0.02927014]
[1732395984054,2.96656075,3404.4,3403.9,0.02927014]
[1732395985484,2.93761,3404.2,3403.9,0.02927014]
[1732395985685,0.02905358,3404.1,3403.9,0.02927014]
[1732395986317,0.03672053,3404.3,3403.9,0.02927014]
[1732395986318,2.93772,3404.0,3403.9,0.02927014]
[1732395986611,0.02902271,3404.0,3403.9,0.02927014]
[1732395987703,2.93756,3404.2,3403.9,0.02927014]
[1732395987907,0.02906536,3404.1,3403.9,0.02927014]
[1732395988557,0.03672056,3404.4,3404.0,3.4129]
[1732395988713,2.9369,3405.0,3404.2,0.55]
[1732395989007,2.9369,3405.0,3404.4,0.55]
[1732395989208,2.93696,3404.9,3404.4,0.55]
[1732395989444,2.93704,3404.8,3404.4,0.57927014]
[1732395990177,0.03423543,3404.7,3404.4,0.57927014]
[1732395990583,2.93691,3405.0,3404.4,0.57927014]
[1732395990915,2.93666,3405.3,3404.4,2.63538014]
[1732395991111,2.93683,3405.1,3404.4,2.63538014]
[1732395991330,0.03446592,3405.0,3404.4,2.63538014]
[1732395991685,0.03446592,3405.0,3404.4,0.57927014]
[1732395991923,2.93703,3404.8,3404.4,0.57927014]
[1732395992122,0.03431768,3404.7,3404.4,0.57927014]
[1732395992353,2.93703,3404.8,3404.4,0.57927014]
[1732395992632,0.0342644,3404.6,3404.4,0.57927014]
[1732395992789,2.93703,3404.8,3404.4,0.57927014]
[1732395992989,0.03421111,3404.5,3404.4,0.57927014]
[1732395993206,2.93703,3404.8,3404.4,0.57927014]
[1732395993406,0.03421111,3404.5,3404.4,0.57927014]
[1732395993652,2.93703,3404.8,3404.4,0.57927014]
[1732395993802,0.03421111,3404.5,3404.4,0.57927014]
[1732395994014,2.93703,3404.8,3404.4,0.57927014]
[1732395994224,2.97358298,3405.0,3404.4,0.57927014]
[1732395994225,0.03421111,3404.5,3404.4,0.57927014]
[1732395994441,2.93687,3405.0,3404.4,0.57927014]
[1732395994929,0.03442424,3404.9,3404.4,0.57927014]
[1732395995602,0.03442424,3404.9,3404.5,2.05609]
[1732395995992,2.93682,3405.1,3404.4,0.57927014]
[1732395996185,0.0343678,3404.8,3404.4,0.57927014]
[1732395996389,2.93686,3405.0,3404.4,0.57927014]
[1732395996608,0.03431452,3404.7,3404.4,0.57927014]
[1732395996809,2.93686,3405.0,3404.4,0.57927014]
[1732395997025,0.03426123,3404.6,3404.4,0.57927014]
[1732395997336,0.03420794,3404.5,3404.4,0.02927014]
[1732395997631,2.93728,3404.5,3404.4,0.02927014]
[1732395997924,3.67939806,3404.5,3404.4,0.02927014]
[1732395998134,3.64267618,3404.5,3404.4,0.02927014]
[1732395998935,0.03420056,3404.5,3404.4,0.02927014]
[1732395999594,0.03420056,3404.5,3404.4,0.57927014]
[1732395999796,2.93694,3404.9,3404.4,0.57927014]
[1732395999996,0.03419846,3404.5,3404.4,0.57927014]
[1732396000199,0.03671444,3404.8,3404.4,0.57927014]
[1732396000412,0.03419846,3404.5,3404.4,0.57927014]
[1732396000622,0.03671444,3404.8,3404.4,0.57927014]
[1732396000960,2.9368,3405.1,3404.4,2.63543014]
[1732396001096,0.03446486,3405.0,3404.4,2.63543014]
[1732396001439,0.03446486,3405.0,3404.4,0.57927014]
[1732396001737,0.03446486,3405.0,3404.5,2.05605]
[1732396002836,0.03446486,3405.0,3404.6,2.05599]
[1732396003034,0.03446486,3405.0,3404.4,2.63537014]
[1732396003209,2.92125486,3405.1,3404.4,2.63537014]
[1732396003421,0.04406579,3404.9,3404.4,2.63537014]
[1732396003736,0.04399476,3404.8,3404.4,2.63537014]
[1732396003910,0.03671353,3405.0,3404.4,0.57927014]
[1732396004116,2.98108579,3404.9,3404.4,0.57927014]
[1732396004320,0.04406579,3404.9,3404.4,2.63542014]
[1732396004520,0.08077933,3404.9,3404.4,2.63542014]
[1732396005503,0.08077933,3404.9,3404.7,0.55]
[1732396005504,0.04406579,3404.9,3404.7,0.55]
[1732396005729,2.9364,3405.6,3404.8,2.81262]
[1732396005934,3.73702,3405.7,3404.8,2.81262]
[1732396005935,2.98098178,3405.5,3404.9,0.55]
[1732396006238,2.9366,3405.3,3404.9,0.55]
[1732396006404,0.03670936,3405.4,3404.9,0.55]
[1732396006608,0.04428872,3405.2,3404.9,0.55]
[1732396006806,0.04435975,3405.3,3404.9,0.55]
[1732396007029,0.0442177,3405.1,3404.9,0.55]
[1732396007231,2.93648,3405.5,3404.9,0.55]
[1732396007431,0.04414667,3405.0,3404.9,0.55]
[1732396007628,2.93648,3405.5,3404.9,0.55]
[1732396007815,0.04414667,3405.0,3404.9,2.60586]
[1732396008020,2.93638,3405.6,3404.9,2.60586]
[1732396008250,0.0442043,3405.0,3404.9,2.60586]
[1732396008443,2.93638,3405.6,3404.9,2.60586]
[1732396008611,3.73696,3405.7,3405.0,2.05575]
[1732396008939,39.0,3410.6,3405.2,2.05566]
[1732396008940,0.04463042,3405.6,3405.2,2.05566]
[1732396009154,2.93601,3406.0,3405.4,0.55]
[1732396009457,2.93581,3406.3,3405.4,0.55]
[1732396009458,0.04456362,3405.5,3405.4,2.60555]
[1732396009645,3.7364,3406.4,3405.7,2.05537]
[1732396009903,3.7364,3406.4,3405.6,0.55]
[1732396009904,0.8007,3406.4,3405.6,0.55]
[1732396010393,0.8007,3406.4,3405.4,0.57927014]
[1732396010394,2.93596,3406.1,3405.7,0.02927014]
[1732396010400,2.93616,3405.8,3405.7,0.02927014]
[1732396012730,2.93584,3406.2,3405.7,0.02927014]
[1732396012940,2.93601,3406.0,3405.7,0.02927014]
[1732396013247,2.93608,3405.9,3405.7,0.02927014]
[1732396014704,2.93616,3405.8,3405.7,0.02927014]
[1732396014904,4.38315811,3405.8,3405.7,0.02927014]
[1732396020053,4.42805143,3405.8,3405.7,0.02927014]
[1732396020806,4.39134769,3405.8,3405.7,0.02927014]
[1732396021010,7.25188313,3405.8,3405.7,0.02927014]
[1732396021324,7.21516807,3405.8,3405.7,0.02927014]
[1732396021510,7.21516807,3405.8,3405.7,1.4e-07]
[1732396021511,10.21516807,3405.8,3405.7,1.4e-07]
[1732396024976,10.87030154,3405.8,3405.7,1.4e-07]
[1732396025173,10.54104067,3405.8,3405.7,1.4e-07]
[1732396025332,2.93788,3403.9,3403.7,0.7608]
[1732396025531,0.04871208,3403.8,3403.7,0.7608]
[1732396025781,0.03672232,3404.1,3403.7,0.7608]
[1732396025933,0.04861402,3403.8,3403.7,0.7608]
[1732396026135,2.93783,3403.9,3403.7,0.7608]
[1732396026370,0.04861402,3403.8,3403.7,0.7608]
[1732396026975,2.93786,3403.9,3403.7,0.7608]
[1732396027135,2.93786,3403.9,3403.7,0.79007014]
[1732396027452,0.04861402,3403.8,3403.7,0.79007014]
[1732396027856,2.93789,3403.8,3403.7,0.79007014]
[1732396028232,2.93789,3403.8,3403.7,0.02927014]
[1732396028432,2.98650402,3403.8,3403.7,0.02927014]
[1732396029076,0.04861402,3403.8,3403.7,0.02927014]
[1732396029433,2.93782,3403.9,3403.7,0.02927014]
[1732396029884,0.04861402,3403.8,3403.7,0.02927014]
[1732396030731,2.973963,3404.6,3403.7,0.02927014]
[1732396030979,2.93789,3403.8,3403.7,0.02927014]
[1732396031342,2.98650402,3403.8,3403.7,0.02927014]
[1732396032439,0.04861402,3403.8,3403.7,0.79857014]
[1732396033132,2.93766,3404.1,3403.7,0.79857014]
[1732396033351,0.04877394,3404.0,3403.7,0.79857014]
[1732396034720,2.937,3404.9,3404.0,0.7693]
[1732396034909,2.9368,3405.1,3404.4,0.7693]
[1732396035104,2.9368,3405.1,3404.5,2.05608]
[1732396035280,2.9368,3405.1,3404.4,0.79857014]
[1732396035281,0.04406514,3405.0,3404.6,0.55]
[1732396035484,2.93677,3405.1,3404.6,0.55]
[1732396035706,0.04396109,3405.0,3404.7,0.7693]
[1732396035908,0.8286,3405.8,3404.9,2.05586]
[1732396035909,2.93646,3405.5,3404.9,2.05586]
[1732396036214,2.93646,3405.5,3404.9,0.02927014]
[1732396036215,2.98082518,3405.4,3404.9,0.02927014]
[1732396037018,2.93669,3405.2,3404.9,0.02927014]
[1732396037319,2.93666,3405.3,3404.9,0.02927014]
[1732396037320,0.04403212,3405.1,3404.9,0.02927014]
[1732396037503,2.9368,3405.1,3404.9,0.02927014]
[1732396037675,0.04396109,3405.0,3404.9,0.02927014]
[1732396038081,0.8286,3405.8,3404.9,0.02927014]
[1732396038082,2.93674,3405.2,3404.9,0.02927014]
[1732396038315,0.04403212,3405.1,3404.9,0.02927014]
[1732396038702,2.93666,3405.3,3404.9,0.02927014]
[1732396038897,0.04410314,3405.2,3404.9,0.02927014]
[1732396039500,2.93677,3405.1,3404.9,0.02927014]
[1732396039681,0.04396109,3405.0,3404.9,0.02927014]
[1732396040123,2.93664,3405.3,3404.9,0.02927014]
[1732396040296,2.98079314,3405.2,3404.9,0.02927014]
[1732396040617,3.01750353,3405.2,3404.9,0.02927014]
[1732396040836,0.04410314,3405.2,3404.9,0.02927014]
[1732396041114,2.93665,3405.3,3404.9,0.02927014]
[1732396041341,0.04410314,3405.2,3404.9,0.02927014]
[1732396041707,2.93653,3405.4,3404.9,0.02927014]
[1732396041908,0.04417416,3405.3,3404.9,0.02927014]
[1732396042701,2.93642,3405.5,3404.9,0.02927014]
[1732396042904,2.98077518,3405.4,3404.9,0.02927014]
[1732396043237,2.93661,3405.3,3404.9,0.02927014]
[1732396043546,0.04410314,3405.2,3404.9,0.02927014]
[1732396044012,0.04410314,3405.2,3405.0,1.3651]
[1732396044214,2.93648,3405.5,3405.0,1.3651]
[1732396044417,0.04403212,3405.1,3405.0,1.3651]
[1732396044629,2.93648,3405.5,3405.0,1.3651]
[1732396045122,2.98083518,3405.4,3405.0,1.3651]
[1732396045295,0.08095398,3405.4,3405.0,1.3651]
[1732396045501,0.04424518,3405.4,3405.0,1.3651]
[1732396046231,0.04424518,3405.4,3405.0,3.42088]
[1732396046443,0.04424518,3405.4,3405.3,0.8151]
[1732396046649,2.93591,3406.1,3405.5,2.05547]
[1732396046937,0.04494818,3406.0,3405.6,0.55]
[1732396047297,0.04494818,3406.0,3405.6,0.57927014]
[1732396048138,0.04494818,3406.0,3405.7,2.05533]
[1732396048313,2.93577,3406.3,3405.8,0.8151]
[1732396048631,0.04516042,3406.2,3405.8,0.8151]
[1732396048873,0.04516042,3406.2,3405.8,0.84437014]
[1732396049075,2.93583,3406.2,3405.8,0.84437014]
[1732396049363,0.04508943,3406.1,3405.9,2.60525]
[1732396049578,0.03669775,3406.4,3405.9,2.60525]
[1732396049744,0.0452314,3406.3,3405.9,2.60525]
[1732396050067,0.0452314,3406.3,3406.0,2.05519]
[1732396050362,2.93541,3406.7,3406.0,2.08446014]
[1732396050567,2.9809891,3406.6,3406.0,2.08446014]
[1732396050786,2.93573,3406.3,3406.0,0.02927014]
[1732396050929,0.04521521,3406.2,3406.0,0.02927014]
[1732396051130,2.9359,3406.1,3406.0,0.02927014]
[1732396051366,2.98104704,3406.1,3406.0,0.02927014]
[1732396051746,0.04514704,3406.1,3406.0,0.02927014]
[1732396053445,2.98104704,3406.1,3406.0,0.02927014]
[1732396057295,0.04514704,3406.1,3406.0,0.85437014]
[1732396057590,2.93558,3406.5,3406.0,0.85437014]
[1732396057777,2.93575,3406.3,3406.0,0.85437014]
[1732396058087,0.04531918,3406.2,3406.0,0.85437014]
[1732396058598,0.04072717,3406.1,3406.0,0.85437014]
[1732396059165,2.97662717,3406.1,3406.0,0.85437014]
[1732396059376,4.35236489,3406.1,3406.0,0.02927014]
[1732396060193,3.76112717,3406.1,3406.0,0.02927014]
[1732396062864,2.97662717,3406.1,3406.0,0.02927014]
[1732396064206,0.04072717,3406.1,3406.0,0.02927014]
[1732396064574,2.9359,3406.1,3406.0,0.02927014]
[1732396064772,2.97290171,3406.1,3406.0,0.85437014]
[1732396065071,2.97290171,3406.1,3406.0,0.02927014]
[1732396065318,0.03700171,3406.1,3406.0,0.02927014]
[1732396065678,2.93541,3406.7,3406.2,0.55]
[1732396065884,2.93541,3406.7,3406.3,0.8251]
[1732396066210,2.93541,3406.7,3406.3,0.02927014]
[1732396066211,2.93557,3406.5,3406.3,0.02927014]
[1732396067407,2.97234523,3406.4,3406.3,0.02927014]
[1732396067911,2.93565,3406.4,3406.3,0.02927014]
[1732396068269,2.97234789,3406.4,3406.3,0.02927014]
[1732396068472,2.93565,3406.4,3406.3,0.02927014]
[1732396068718,2.93556,3406.5,3406.3,0.02927014]
[1732396068952,2.93554,3406.6,3406.3,0.02927014]
[1732396069884,2.97223552,3406.6,3406.3,0.02927014]
[1732396070212,0.03669552,3406.6,3406.3,0.02927014]
[1732396070417,2.97218552,3406.6,3406.3,0.02927014]
[1732396070911,2.93532,3406.8,3406.3,0.02927014]
[1732396071286,2.93549,3406.6,3406.3,0.02927014]
[1732396071489,2.93532,3406.8,3406.3,0.02927014]
[1732396071926,2.97209515,3406.7,3406.3,0.02927014]
[1732396072327,2.93565,3406.4,3406.3,0.02927014]
[1732396072624,0.7845,3407.0,3406.3,0.02927014]
[1732396072625,2.93554,3406.6,3406.3,0.02927014]
[1732396072924,2.93557,3406.5,3406.3,0.02927014]
[1732396073229,2.93554,3406.6,3406.3,0.02927014]
[1732396074128,3.71963,3407.0,3406.3,0.57927014]
[1732396074289,2.93513,3407.0,3406.5,0.8075]
[1732396074495,2.93504,3407.1,3406.6,0.55]
[1732396074695,2.93522,3406.9,3406.6,0.57927014]
[1732396075514,0.03669072,3407.0,3406.6,0.57927014]
[1732396075720,2.93522,3406.9,3406.6,0.57927014]
[1732396075896,0.03669072,3407.0,3406.6,0.57927014]
[1732396076324,2.97182072,3407.0,3406.6,0.57927014]
[1732396076626,2.93522,3406.9,3406.6,0.57927014]
[1732396076834,0.03669072,3407.0,3406.6,0.57927014]
[1732396077122,2.93504,3407.1,3406.6,0.57927014]
[1732396078947,2.93515,3407.0,3406.6,0.57927014]
[1732396079320,2.93504,3407.1,3406.6,0.57927014]
[1732396079727,2.93514,3407.0,3406.6,0.57927014]
[1732396079932,0.03445889,3406.9,3406.6,2.63410014]
[1732396080323,2.93498,3407.2,3406.6,2.63410014]
[1732396080548,0.03440567,3406.8,3406.6,0.57927014]
[1732396080751,2.93505,3407.1,3406.6,0.57927014]
[1732396081267,0.03461215,3407.0,3406.6,0.57927014]
[1732396081553,2.93519,3407.0,3406.6,0.57927014]
[1732396081845,0.03455894,3406.9,3406.6,2.63410014]
[1732396082255,2.93499,3407.2,3406.9,0.8092]
[1732396082452,2.93483,3407.4,3406.9,0.83847014]
[1732396082809,2.94164269,3407.6,3406.9,0.83847014]
[1732396083013,2.94164269,3407.6,3407.0,2.60459]
[1732396083857,0.00700269,3407.6,3407.1,2.05448]
[1732396084015,0.00700269,3407.6,3407.3,0.55]
[1732396084446,0.00700269,3407.6,3407.3,0.57927014]
[1732396084961,0.00700269,3407.6,3407.5,3.41349]
[1732396085163,0.00700269,3407.6,3407.5,6.44276014]
[1732396085328,2.92382038,3409.9,3407.5,6.44276014]
[1732396085329,0.03667326,3409.1,3407.7,0.8092]
[1732396085667,2.93263,3409.9,3408.9,0.843]
[1732396085838,2.93284,3409.7,3409.0,0.8092]
[1732396086022,2.93247,3410.1,3409.1,0.55]
[1732396086219,2.93274,3409.8,3409.1,0.55]
[1732396086523,2.93272,3409.8,3409.1,0.57927014]
[1732396086833,2.93297,3409.6,3409.1,0.57927014]
[1732396087218,2.9328,3409.7,3409.1,0.57927014]
[1732396087419,2.9329,3409.6,3409.1,0.57927014]
[1732396087620,2.93272,3409.8,3409.1,0.57927014]
[1732396087861,0.03666088,3410.1,3409.1,0.57927014]
[1732396088147,2.93287,3409.7,3409.1,0.57927014]
[1732396088350,0.03666089,3410.2,3409.1,0.57927014]
[1732396088351,2.93289,3409.6,3409.1,0.57927014]
[1732396089060,2.43289,3409.6,3409.1,0.57927014]
[1732396090466,2.93309,3409.4,3409.1,0.57927014]
[1732396090651,2.93292,3409.6,3409.1,0.57927014]
[1732396091144,2.93304,3409.5,3409.1,0.57927014]
[1732396091359,2.93281,3409.7,3409.1,0.57927014]
[1732396091660,2.93289,3409.6,3409.1,0.57927014]
[1732396092020,2.93273,3409.8,3409.1,0.57927014]
[1732396092223,2.93299,3409.5,3409.1,0.57927014]
[1732396092657,0.03666087,3409.9,3409.1,0.57927014]
[1732396092861,2.93314,3409.4,3409.1,0.57927014]
[1732396093365,2.93303,3409.5,3409.1,0.57927014]
[1732396093575,2.93309,3409.4,3409.1,0.57927014]
[1732396094265,5.86526,3409.9,3409.1,0.57927014]
[1732396094489,2.93313,3409.4,3409.1,0.57927014]
[1732396095067,0.03666123,3409.8,3409.1,0.57927014]